fUSD/lending_fUSD_20240119
["ID","MTS","AMOUNT","RATE_DAILY","PERIOD"]
[312199807,1705684323121,-500.0,0.00024931,2]
[312199808,1705684323130,-602.03,0.00024931,2]
[312199809,1705684323140,-500.0,0.00024931,2]
[312199810,1705684323151,-1736.83,0.00024931,2]
[312199811,1705684323160,-715.58,0.00024931,2]
[312199812,1705684323169,-500.0,0.00024931,2]
[312199813,1705684323179,-648.18,0.00024931,2]
[312199814,1705684323188,-582.03,0.00024931,2]
[312199815,1705684323198,-581.09,0.00024931,2]
[312199816,1705684323209,-500.0,0.00024931,2]
[312199817,1705684323221,-588.13,0.00024931,2]
[312199818,1705684323230,-800.73,0.00024931,2]
[312199819,1705684323240,-524.92,0.00024931,2]
[312199820,1705684323250,-500.0,0.00024931,2]
[312199821,1705684323260,-729.35,0.00024931,2]
[312199822,1705684323269,-798.17,0.00024931,2]
[312199823,1705684323278,-510.07,0.00024931,2]
[312199824,1705684323290,-594.92,0.00024931,2]
[312199825,1705684323301,-500.0,0.00024931,2]
[312199826,1705684323310,-789.92,0.00024931,2]
[312199827,1705684323320,-500.0,0.00024931,2]
[312199828,1705684323329,-500.0,0.00024931,2]
[312199829,1705684323339,-500.0,0.00024931,2]
[312199830,1705684323349,-500.0,0.00024931,2]
[312199831,1705684323358,-547.54,0.00024931,2]
[312199832,1705684323368,-500.0,0.00024931,2]
[312199833,1705684323377,-500.0,0.00024931,2]
[312199834,1705684323387,-500.0,0.00024931,2]
[312199835,1705684323396,-500.0,0.00024931,2]
[312199836,1705684323405,-836.55,0.00024931,2]
[312199837,1705684323415,-613.85,0.00024931,2]
[312199838,1705684323424,-563.98,0.00024931,2]
[312199839,1705684323433,-500.0,0.00024931,2]
[312199840,1705684323443,-500.0,0.00024931,2]
[312199841,1705684323452,-1354.55,0.00024931,2]
[312199842,1705684323461,-500.0,0.00024931,2]
[312199843,1705684323471,-500.0,0.00024931,2]
[312199844,1705684323480,-661.22,0.00024931,2]
[312199845,1705684323489,-500.0,0.00024931,2]
[312199846,1705684323498,-500.0,0.00024931,2]
[312199847,1705684323507,-521.39,0.00024931,2]
[312199848,1705684323517,-649.06,0.00024931,2]
[312199849,1705684323526,-942.15,0.00024931,2]
[312199850,1705684323537,-500.0,0.00024931,2]
[312199851,1705684323547,-500.0,0.00024931,2]
[312199852,1705684323556,-665.24,0.00024931,2]
[312199853,1705684323565,-500.0,0.00024931,2]
[312199854,1705684323575,-509.47,0.00024931,2]
[312199855,1705684323584,-567.16,0.00024931,2]
[312199856,1705684323593,-500.0,0.00024931,2]
[312199857,1705684323601,-587.72,0.00024931,2]
[312199858,1705684323610,-609.03,0.00024931,2]
[312199859,1705684323619,-603.61529803,0.00024931,2]
[312199860,1705684323628,-738.2,0.00024931,2]
[312199861,1705684323636,-673.09,0.00024931,2]
[312199862,1705684323645,-1257.45,0.00024931,2]
[312199863,1705684323654,-673.79,0.00024931,2]
[312199864,1705684323664,-624.73,0.00024931,2]
[312199865,1705684323673,-518.0,0.00024931,2]
[312199866,1705684323682,-500.0,0.00024931,2]
[312199867,1705684323691,-634.3,0.00024931,2]
[312199868,1705684323700,-500.0,0.00024931,2]
[312199869,1705684323709,-500.0,0.00024931,2]
[312199870,1705684323718,-500.0,0.00024931,2]
[312199871,1705684323727,-500.0,0.00024931,2]
[312199872,1705684323735,-500.0,0.00024931,2]
[312199873,1705684323745,-821.92,0.00024931,2]
[312199874,1705684323754,-500.0,0.00024931,2]
[312199875,1705684323763,-500.0,0.00024931,2]
[312199876,1705684323773,-673.61,0.00024931,2]
[312199877,1705684323784,-500.0,0.00024931,2]
[312199878,1705684323793,-522.51,0.00024931,2]
[312199879,1705684323802,-543.84,0.00024931,2]
[312199880,1705684323811,-799.17,0.00024931,2]
[312199881,1705684323820,-862.29,0.00024931,2]
[312199882,1705684323830,-539.84,0.00024931,2]
[312199883,1705684323839,-365.9674763,0.00024931,2]
[312199884,1705684323848,-903.19,0.00024931,2]
[312199885,1705684323857,-720.59,0.00024931,2]
[312199886,1705684323867,-790.36,0.00024931,2]
[312199887,1705684323878,-500.0,0.00024931,2]
[312199888,1705684323887,-500.0,0.00024931,2]
[312199889,1705684323897,-934.67,0.00024931,2]
[312199890,1705684323906,-1287.97,0.00024931,2]
[312199891,1705684323915,-1004.82,0.00024931,2]
[312199892,1705684323924,-500.0,0.00024931,2]
[312199893,1705684323933,-718.68,0.00024931,2]
[312199894,1705684323942,-500.0,0.00024931,2]
[312199895,1705684323951,-155.44,0.00024931,2]
[312199896,1705684323961,-2888.65,0.00024931,2]
[312199897,1705684323970,-751.55,0.00024931,2]
[312199898,1705684323979,-767.72,0.00024931,2]
[312199899,1705684323988,-500.0,0.00024931,2]
[312199900,1705684323997,-500.0,0.00024931,2]
[312199901,1705684324007,-553.54,0.00024931,2]
[312199902,1705684324016,-1564.8,0.00024931,2]
[312199903,1705684324025,-2087.23,0.00024931,2]
[312199904,1705684324036,-635.0,0.00024931,2]
[312199905,1705684324047,-779.44,0.00024931,2]
[312199906,1705684324056,-692.16,0.00024931,2]
[312199907,1705684324066,-776.21,0.00024931,2]
[312199908,1705684324078,-801.0,0.00024931,2]
[312199909,1705684324087,-2489.47,0.00024931,2]
[312199910,1705684324097,-1305.59,0.00024931,2]
[312199911,1705684324106,-500.0,0.00024931,2]
[312199912,1705684324116,-540.08,0.00024931,2]
[312199913,1705684324125,-657.66,0.00024931,2]
[312199914,1705684324134,-3922.54,0.00024931,2]
[312199915,1705684324143,-500.0,0.00024931,2]
[312199916,1705684324153,-500.0,0.00024931,2]
[312199917,1705684324164,-500.0,0.00024931,2]
[312199918,1705684324173,-1067.45,0.00024931,5]
[312199919,1705684324182,-500.0,0.00024931,2]
[312199920,1705684324192,-574.27,0.00024931,2]
[312199921,1705684324201,-2247.96,0.00024931,2]
[312199922,1705684324211,-4625.17,0.00024931,2]
[312199923,1705684324221,-500.0,0.00024931,2]
[312199924,1705684324234,-2955.88,0.00024931,2]
[312199925,1705684324244,-494.3995717,0.00024931,2]
[312199926,1705684324253,-500.0,0.00024931,2]
[312199927,1705684324263,-500.0,0.00024931,2]
[312199928,1705684324272,-792.41,0.00024931,2]
[312199929,1705684324282,-500.0,0.00024931,2]
[312199930,1705684324292,-3375.04,0.00024931,2]
[312199931,1705684324301,-1482.95,0.00024931,2]
[312199932,1705684324310,-1145.18,0.00024931,2]
[312199933,1705684324319,-3968.6,0.00024931,2]
[312199934,1705684324328,-642.03,0.00024931,2]
[312199935,1705684324338,-759.02,0.00024931,2]
[312199936,1705684324347,-519.9,0.00024931,2]
[312199937,1705684324357,-2480.63,0.00024931,2]
[312199938,1705684324366,-1025.72,0.00024931,2]
[312199939,1705684324601,-733.85,0.00024931,2]
[312199940,1705684324615,-3098.92,0.00024931,2]
[312199941,1705684324626,-500.0,0.00024931,2]
[312199942,1705684324637,-6021.86,0.00024931,2]
[312199943,1705684324648,-753.94,0.00024931,2]
[312199944,1705684324659,-500.0,0.00024931,2]
[312199945,1705684324669,-500.0,0.00024931,2]
[312199946,1705684324680,-978.79,0.00024931,2]
[312199947,1705684324691,-4921.79,0.00024931,2]
[312199948,1705684324702,-8646.25,0.00024931,2]
[312199949,1705684324714,-682.8,0.00024931,2]
[312199950,1705684324725,-500.0,0.00024931,2]
[312199951,1705684324736,-1163.38,0.00024931,2]
[312199952,1705684324747,-500.0,0.00024931,2]
[312199953,1705684324757,-289.31475764,0.00024931,2]
[312199954,1705684324769,-500.0,0.00024931,2]
[312199955,1705684324781,-2479.77,0.00024931,2]
[312199956,1705684324801,-805.35,0.00024931,2]
[312199957,1705684324813,-500.0,0.00024931,2]
[312199958,1705684324824,-1096.89,0.00024931,2]
[312199959,1705684324836,-846.06,0.00024931,2]
[312199960,1705684324848,-522.24,0.00024931,2]
[312199961,1705684324860,-1247.86,0.00024931,2]
[312199962,1705684324871,-1521.64,0.00024931,2]
[312199963,1705684324882,-810.2,0.00024931,2]
[312199964,1705684324894,-1270.75,0.00024931,2]
[312199965,1705684324904,-500.0,0.00024931,2]
[312199966,1705684324915,-648.61,0.00024931,2]
[312199967,1705684324925,-1375.2,0.00024931,2]
[312199968,1705684324935,-1158.73,0.00024931,2]
[312199969,1705684324946,-17751.82,0.00024931,2]
[312199970,1705684324956,-500.0,0.00024931,2]
[312199971,1705684324966,-503.19,0.00024931,2]
[312199972,1705684324976,-1097.0,0.00024931,2]
[312199973,1705684324988,-1690.88,0.00024931,2]
[312199974,1705684325000,-1798.17,0.00024931,2]
[312199975,1705684325010,-662.05,0.00024931,2]
[312199976,1705684325021,-500.0,0.00024931,2]
[312199977,1705684325036,-820.42,0.00024931,2]
[312199978,1705684325056,-1315.74,0.00024931,2]
[312199979,1705684325066,-2334.22,0.00024931,2]
[312199980,1705684325077,-500.0,0.00024931,2]
[312199981,1705684325088,-918.43,0.00024931,2]
[312199982,1705684325098,-1931.87,0.00024931,2]
[312199983,1705684325108,-2683.86,0.00024931,2]
[312199984,1705684325119,-759.51,0.00024931,2]
[312199985,1705684325131,-1614.07,0.00024931,2]
[312199986,1705684325142,-4770.94,0.00024931,2]
[312199987,1705684325153,-1303.95,0.00024931,2]
[312199988,1705684325164,-658.2,0.00024931,2]
[312199989,1705684325174,-500.0,0.00024931,2]
[312199990,1705684325184,-500.0,0.00024931,2]
[312199991,1705684325193,-500.0,0.00024931,2]
[312199992,1705684325203,-500.0,0.00024931,2]
[312199993,1705684325214,-695.99,0.00024931,2]
[312199994,1705684325224,-8690.7,0.00024931,2]
[312199995,1705684325235,-6873.67,0.00024931,2]
[312199996,1705684325246,-500.0,0.00024931,2]
[312199997,1705684325257,-735.29,0.00024931,2]
[312199998,1705684325267,-519.42,0.00024931,2]
[312199999,1705684325277,-1295.46,0.00024931,2]
[312200000,1705684325292,-1149.53,0.00024931,2]
[312200001,1705684325302,-870.11,0.00024931,2]
[312200002,1705684325312,-500.0,0.00024931,2]
[312200003,1705684325322,-500.0,0.00024931,2]
[312200004,1705684325332,-1617.17,0.00024931,2]
[312200005,1705684325341,-753.21,0.00024931,2]
[312200006,1705684325351,-982.23,0.00024931,2]
[312200007,1705684325361,-763.08,0.00024931,2]
[312200008,1705684325371,-1344.83,0.00024931,2]
[312200009,1705684325381,-569.27,0.00024931,2]
[312200010,1705684325391,-597.5,0.00024931,2]
[312200011,1705684325401,-512.26,0.00024931,2]
[312200012,1705684325412,-742.83,0.00024931,2]
[312200013,1705684325422,-500.0,0.00024931,2]
[312200014,1705684325431,-2112.76,0.00024931,2]
[312200015,1705684325441,-1184.32,0.00024931,2]
[312200016,1705684325452,-500.0,0.00024931,2]
[312200017,1705684325462,-4987.06,0.00024931,2]
[312200018,1705684325472,-500.0,0.00024931,2]
[312200019,1705684325482,-2960.59,0.00024931,2]
[312200020,1705684325491,-15338.55,0.00024931,2]
[312200021,1705684325501,-500.0,0.00024931,2]
[312200022,1705684325511,-594.36,0.00024931,2]
[312200023,1705684325521,-500.0,0.00024931,2]
[312200024,1705684325535,-500.0,0.00024931,2]
[312200025,1705684325545,-2166.93,0.00024931,2]
[312200026,1705684325555,-2307.01,0.00024931,2]
[312200027,1705684325566,-500.0,0.00024931,2]
[312200028,1705684325576,-1238.0,0.00024931,2]
[312200029,1705684325586,-582.28,0.00024931,2]
[312200030,1705684325597,-1682.88,0.00024931,2]
[312200031,1705684325607,-861.16,0.00024931,2]
[312200032,1705684325616,-970.11,0.00024931,2]
[312200033,1705684325627,-1309.07,0.00024931,2]
[312200034,1705684325636,-687.38,0.00024931,2]
[312200035,1705684325646,-500.0,0.00024931,2]
[312200036,1705684325656,-500.0,0.00024931,2]
[312200037,1705684325666,-966.15,0.00024931,2]
[312200038,1705684325676,-1452.73,0.00024931,2]
[312200039,1705684325687,-543.77,0.00024931,2]
[312200040,1705684325697,-687.66,0.00024931,2]
[312200041,1705684325708,-789.87,0.00024931,2]
[312200042,1705684325718,-1600.24,0.00024931,2]
[312200043,1705684325728,-580.5,0.00024931,2]
[312200044,1705684325739,-724.98,0.00024931,2]
[312200045,1705684325750,-566.64,0.00024931,2]
[312200046,1705684325760,-500.0,0.00024931,2]
[312200047,1705684325771,-500.0,0.00024931,2]
[312200048,1705684325786,-500.0,0.00024931,2]
[312200049,1705684325796,-500.0,0.00024931,2]
[312200050,1705684325807,-2353.38,0.00024931,2]
[312200051,1705684325817,-1472.8,0.00024931,2]
[312200052,1705684325827,-500.0,0.00024931,2]
[312200053,1705684325838,-982.82,0.00024931,2]
[312200054,1705684325848,-1029.65,0.00024931,2]
[312200055,1705684325859,-500.0,0.00024931,2]
[312200056,1705684325868,-1034.15,0.00024931,2]
[312200057,1705684325878,-500.0,0.00024931,2]
[312200058,1705684325887,-1105.06,0.00024931,2]
[312200059,1705684325898,-511.82,0.00024931,2]
[312200060,1705684325908,-2707.99,0.00024931,2]
[312200061,1705684325917,-1045.7,0.00024931,2]
[312200062,1705684325926,-1777.84,0.00024931,2]
[312200063,1705684325936,-536.83,0.00024931,2]
[312200064,1705684325946,-10382.29,0.00024931,2]
[312200065,1705684325956,-1339.3,0.00024931,2]
[312200066,1705684325965,-500.0,0.00024931,2]
[312200067,1705684325975,-907.28,0.00024931,2]
[312200068,1705684325985,-1150.48,0.00024931,2]
[312200069,1705684325994,-3979.15,0.00024931,2]
[312200070,1705684326004,-1514.36,0.00024931,2]
[312200071,1705684326013,-524.59,0.00024931,2]
[312200072,1705684326023,-778.28,0.00024931,2]
[312200073,1705684326035,-500.0,0.00024931,2]
[312200074,1705684326046,-5877.42,0.00024931,2]
[312200075,1705684326056,-848.6,0.00024931,2]
[312200076,1705684326067,-635.87,0.00024931,2]
[312200077,1705684326078,-733.77,0.00024931,2]
[312200078,1705684326090,-963.32,0.00024931,2]
[312200079,1705684326102,-2258.64,0.00024931,2]
[312200080,1705684326112,-500.0,0.00024931,2]
[312200081,1705684326133,-689.61,0.00024931,2]
[312200082,1705684326156,-3018.83,0.00024931,2]
[312200083,1705684326176,-649.04,0.00024931,2]
[312200084,1705684326198,-3000.0,0.0002494,2]
[312200085,1705684326216,-202.0,0.00024949,10]
[312200086,1705684326237,-3000.0,0.0002495,2]
[312200087,1705684326254,-1000.0,0.00024957,3]
[312200088,1705684326274,-1000.0,0.00024957,3]
[312200089,1705684326300,-1000.0,0.00024957,3]
[312200090,1705684326321,-3000.0,0.0002496,2]
[312200091,1705684326346,-400.0,0.0002497,2]
[312200092,1705684326362,-411.29261382,0.0002497,2]
[312200093,1705684326381,-3000.0,0.0002497,2]
[312200094,1705684326400,-3000.0,0.0002498,2]
[312200095,1705684326418,-3000.0,0.0002499,2]
[312200096,1705684326436,-167.40543921,0.00025,2]
[312200097,1705684326452,-1584.35924632,0.00025,2]
[312200098,1705684326469,-158.69157594,0.00025,2]
[312200099,1705684326485,-202.05640348,0.00025,2]
[312200100,1705684326501,-933.81243155,0.00025,2]
[312200101,1705684326517,-303.51189486,0.00025,2]
[312200102,1705684326534,-1249.1438969,0.00025,2]
[312200103,1705684326553,-307.5946143,0.00025,5]
[312200104,1705684326570,-10051.36706692,0.00025,2]
[312200105,1705684326586,-1000.0,0.00025,2]
[312200106,1705684326602,-199.98932133,0.00025,2]
[312200107,1705684326617,-2500.0,0.00025,2]
[312200108,1705684326632,-158.0,0.00025,2]
[312200109,1705684326648,-173.079539,0.00025,2]
[312200110,1705684326664,-992.615281,0.00025,2]
[312200111,1705684326680,-300.0,0.00025,2]
[312200112,1705684326696,-3000.0,0.00025,2]
[312200113,1705684326711,-3000.0,0.00025,2]
[312200114,1705684326725,-3000.0,0.00025,2]
[312200115,1705684326742,-250.0,0.00025,2]
[312200116,1705684326759,-305.720085,0.00025,2]
[312200117,1705684326774,-1300.168139,0.00025,2]
[312200118,1705684326793,-275.5,0.00025,2]
[312200119,1705684326809,-150.0,0.00025,2]
[312200120,1705684326825,-1971.008451,0.00025,2]
[312200121,1705684326842,-707.0707,0.00025,2]
[312200122,1705684326858,-707.0707,0.00025,2]
[312200123,1705684326876,-2622.3081,0.00025,2]
[312200124,1705684326891,-2622.3081,0.00025,2]
[312200125,1705684326907,-150.0,0.00025,2]
[312200126,1705684326923,-3000.0,0.0002501,2]
[312200127,1705684326938,-3000.0,0.0002501,2]
[312200128,1705684326954,-3000.0,0.0002502,2]
[312200129,1705684326969,-3000.0,0.0002502,2]
[312200130,1705684326986,-3000.0,0.0002503,2]
[312200131,1705684327001,-3000.0,0.0002503,2]
[312200132,1705684327017,-4601.285691,0.0002504,2]
[312200133,1705684327033,-3000.0,0.0002504,2]
[312200134,1705684327051,-151.0,0.0002504,7]
[312200135,1705684327065,-372.983671,0.0002504,7]
[312200136,1705684327081,-372.983671,0.0002504,7]
[312200137,1705684327098,-151.0,0.0002504,7]
[312200138,1705684327112,-3000.0,0.0002505,2]
[312200139,1705684327129,-3000.0,0.0002506,2]
[312200140,1705684327144,-3000.0,0.0002507,2]
[312200141,1705684327158,-3000.0,0.0002508,2]
[312200142,1705684327174,-154.04513762,0.0002509,2]
[312200143,1705684327189,-3000.0,0.0002509,2]
[312200144,1705684327204,-167.0,0.00025099,2]
[312200145,1705684327220,-1322.5698109,0.000251,2]
[312200146,1705684327236,-3000.0,0.000251,2]
[312200147,1705684327251,-3000.0,0.0002511,2]
[312200148,1705684327266,-3000.0,0.0002512,2]
[312200149,1705684327282,-3000.0,0.0002513,2]
[312200150,1705684327304,-3000.0,0.0002514,2]
[312200151,1705684327322,-3000.0,0.0002515,2]
[312200152,1705684327337,-3000.0,0.0002516,2]
[312200153,1705684327351,-3000.0,0.0002517,2]
[312200154,1705684327365,-3000.0,0.0002518,2]
[312200155,1705684327381,-3000.0,0.0002519,2]
[312200156,1705684327395,-1500.0,0.00025198,2]
[312200157,1705684327410,-3000.0,0.000252,2]
[312200158,1705684327426,-1000.0,0.00025202,2]
[312200159,1705684327440,-151.0,0.00025205,7]
[312200160,1705684327454,-466.441857,0.00025205,7]
[312200161,1705684327469,-466.441857,0.00025205,7]
[312200162,1705684327485,-204.07049,0.00025205,7]
[312200163,1705684327499,-204.07049,0.00025205,7]
[312200164,1705684327517,-224.87461,0.00025205,7]
[312200165,1705684327531,-516.583102,0.00025205,7]
[312200166,1705684327548,-410.194433,0.00025205,7]
[312200167,1705684327563,-410.194433,0.00025205,7]
[312200168,1705684327579,-671.109371,0.00025205,7]
[312200169,1705684327593,-671.109371,0.00025205,7]
[312200170,1705684327609,-151.0,0.00025205,7]
[312200171,1705684327624,-5091.101108,0.00025205,7]
[312200172,1705684327639,-5091.101099,0.00025205,7]
[312200173,1705684327654,-2096.119647,0.00025205,7]
[312200174,1705684327669,-2096.119651,0.00025205,7]
[312200175,1705684327683,-542.58357866,0.00025205,2]
[312200176,1705684327699,-622.14,0.00025205,2]
[312200177,1705684327714,-500.0,0.00025205,2]
[312200178,1705684327730,-500.0,0.00025205,2]
[312200179,1705684327744,-500.0,0.00025205,2]
[312200180,1705684327759,-542.14,0.00025205,2]
[312200181,1705684327773,-500.0,0.00025205,2]
[312200182,1705684327789,-500.0,0.00025205,2]
[312200183,1705684327805,-500.0,0.00025205,2]
[312200184,1705684327822,-500.0,0.00025205,2]
[312200185,1705684327838,-542.59,0.00025205,2]
[312200186,1705684327850,-500.0,0.00025205,2]
[312200187,1705684327859,-730.0,0.00025205,2]
[312200188,1705684327869,-528.39,0.00025205,2]
[312200189,1705684327878,-542.09,0.00025205,2]
[312200190,1705684327887,-500.0,0.00025205,2]
[312200191,1705684327897,-500.0,0.00025205,2]
[312200192,1705684327906,-676.04,0.00025205,2]
[312200193,1705684327916,-500.0,0.00025205,2]
[312200194,1705684327926,-808.53,0.00025205,2]
[312200195,1705684327936,-443.28271093,0.00025205,2]
[312200196,1705684327945,-544.1,0.00025205,2]
[312200197,1705684327955,-500.0,0.00025205,2]
[312200198,1705684327965,-500.0,0.00025205,2]
[312200199,1705684327974,-513.9,0.00025205,2]
[312200200,1705684327983,-807.4,0.00025205,2]
[312200201,1705684327994,-500.0,0.00025205,2]
[312200202,1705684328003,-500.0,0.00025205,2]
[312200203,1705684328013,-500.0,0.00025205,2]
[312200204,1705684328023,-1752.26,0.00025205,2]
[312200205,1705684328034,-565.26,0.00025205,2]
[312200206,1705684328044,-500.0,0.00025205,2]
[312200207,1705684328055,-500.0,0.00025205,2]
[312200208,1705684328064,-500.0,0.00025205,2]
[312200209,1705684328074,-638.62,0.00025205,2]
[312200210,1705684328084,-500.0,0.00025205,2]
[312200211,1705684328095,-500.0,0.00025205,2]
[312200212,1705684328104,-702.27,0.00025205,2]
[312200213,1705684328113,-546.25,0.00025205,2]
[312200214,1705684328542,-500.0,0.00025205,2]
[312200215,1705684328576,-500.0,0.00025205,2]
[312200216,1705684328601,-391.07081053,0.00025205,2]
[312200217,1705684328619,-500.0,0.00025205,2]
[312200218,1705684328628,-500.0,0.00025205,2]
[312200219,1705684328637,-500.0,0.00025205,2]
[312200220,1705684328647,-1045.91,0.00025205,2]
[312200221,1705684328656,-500.0,0.00025205,2]
[312200222,1705684328666,-615.78,0.00025205,2]
[312200223,1705684328674,-546.84,0.00025205,2]
[312200224,1705684328685,-884.67,0.00025205,2]
[312200225,1705684328694,-679.98,0.00025205,2]
[312200226,1705684328703,-473.40400456,0.00025205,2]
[312200227,1705684328717,-500.0,0.00025205,2]
[312200228,1705684328726,-602.03,0.00025205,2]
[312200229,1705684328735,-500.0,0.00025205,2]
[312200230,1705684328744,-500.0,0.00025205,2]
[312200231,1705684328754,-1736.83,0.00025205,2]
[312200232,1705684328763,-715.58,0.00025205,2]
[312200233,1705684328773,-500.0,0.00025205,2]
[312200234,1705684328782,-648.18,0.00025205,2]
[312200235,1705684328797,-582.03,0.00025205,2]
[312200236,1705684328806,-581.09,0.00025205,2]
[312200237,1705684328816,-500.0,0.00025205,2]
[312200238,1705684328825,-588.13,0.00025205,2]
[312200239,1705684328834,-800.73,0.00025205,2]
[312200240,1705684328843,-524.92,0.00025205,2]
[312200241,1705684328851,-500.0,0.00025205,2]
[312200242,1705684328860,-729.35,0.00025205,2]
[312200243,1705684328869,-798.17,0.00025205,2]
[312200244,1705684328878,-510.07,0.00025205,2]
[312200245,1705684328887,-594.92,0.00025205,2]
[312200246,1705684328896,-500.0,0.00025205,2]
[312200247,1705684328906,-789.92,0.00025205,2]
[312200248,1705684328915,-500.0,0.00025205,2]
[312200249,1705684328925,-500.0,0.00025205,2]
[312200250,1705684328935,-500.0,0.00025205,2]
[312200251,1705684328944,-500.0,0.00025205,2]
[312200252,1705684328955,-547.54,0.00025205,2]
[312200253,1705684328965,-500.0,0.00025205,2]
[312200254,1705684328975,-500.0,0.00025205,2]
[312200255,1705684328985,-500.0,0.00025205,2]
[312200256,1705684328995,-591.04,0.00025205,2]
[312200257,1705684329005,-836.55,0.00025205,2]
[312200258,1705684329015,-613.85,0.00025205,2]
[312200259,1705684329025,-563.98,0.00025205,2]
[312200260,1705684329036,-500.0,0.00025205,2]
[312200261,1705684329047,-500.0,0.00025205,2]
[312200262,1705684329057,-1354.55,0.00025205,2]
[312200263,1705684329069,-500.0,0.00025205,2]
[312200264,1705684329077,-500.0,0.00025205,2]
[312200265,1705684329089,-661.22,0.00025205,2]
[312200266,1705684329097,-500.0,0.00025205,2]
[312200267,1705684329107,-500.0,0.00025205,2]
[312200268,1705684329116,-521.39,0.00025205,2]
[312200269,1705684329125,-649.06,0.00025205,2]
[312200270,1705684329135,-942.15,0.00025205,2]
[312200271,1705684329145,-500.0,0.00025205,2]
[312200272,1705684329156,-500.0,0.00025205,2]
[312200273,1705684329167,-665.24,0.00025205,2]
[312200274,1705684329180,-560.90671885,0.00025205,2]
[312200275,1705684329191,-509.47,0.00025205,2]
[312200276,1705684329200,-567.16,0.00025205,2]
[312200277,1705684329211,-587.72,0.00025205,2]
[312200278,1705684329220,-609.03,0.00025205,2]
[312200279,1705684329230,-673.09,0.00025205,2]
[312200280,1705684329239,-738.2,0.00025205,2]
[312200281,1705684329249,-1257.45,0.00025205,2]
[312200282,1705684329258,-673.79,0.00025205,2]
[312200283,1705684329267,-624.73,0.00025205,2]
[312200284,1705684329276,-518.0,0.00025205,2]
[312200285,1705684329287,-500.0,0.00025205,2]
[312200286,1705684329296,-634.3,0.00025205,2]
[312200287,1705684329305,-500.0,0.00025205,2]
[312200288,1705684329315,-500.0,0.00025205,2]
[312200289,1705684329324,-257.71052455,0.00025205,2]
[312200290,1705684329334,-500.0,0.00025205,2]
[312200291,1705684329343,-500.0,0.00025205,2]
[312200292,1705684329353,-821.92,0.00025205,2]
[312200293,1705684329363,-500.0,0.00025205,2]
[312200294,1705684329373,-500.0,0.00025205,2]
[312200295,1705684329383,-673.61,0.00025205,2]
[312200296,1705684329393,-500.0,0.00025205,2]
[312200297,1705684329403,-522.51,0.00025205,2]
[312200298,1705684329414,-543.84,0.00025205,2]
[312200299,1705684329425,-799.17,0.00025205,2]
[312200300,1705684329435,-862.29,0.00025205,2]
[312200301,1705684329445,-539.84,0.00025205,2]
[312200302,1705684329455,-903.19,0.00025205,2]
[312200303,1705684329466,-720.59,0.00025205,2]
[312200304,1705684329476,-790.36,0.00025205,2]
[312200305,1705684329486,-500.0,0.00025205,2]
[312200306,1705684329496,-500.0,0.00025205,2]